Cogmind - Beta 15 @@@ ROGUE MODE // 2025.09.10 @ 19:09:15 Player: Godsword Result: Self-destructed Performance ------------- Evolutions (4) 2000 Regions Visited (4) 800 Robots Destroyed (10) 50 Value Destroyed (151) 151 Prototype IDs (12) 240 Alien Tech Used (0) 0 Bonus (800) 800 TOTAL SCORE: 4041 Bonus ------- Registered with UFD 300 Met Optimus in HQ 500 Cogmind --------- Core Integrity 658/850 Matter 191/300 Energy 360/360 System Corruption 0% Temperature Cool (9) Movement Core (1050) Ox20 Location -6/Factory Parts ------- > --- POWER (2) -------- Micro Nuclear Core Fission Core > --- PROPULSION (6) --- (None) > --- UTILITY (5) ------ High-capacity Storage Unit IFF Parser Improved Terrain Scanner Advanced ECM Suite A0-MCA's Component Scanner > --- WEAPON (2) ------- (None) > --- INVENTORY (20) --- Micro Nuclear Core Micro Nuclear Core Flight Unit Flight Unit Flight Unit Flight Unit Cesium-ion Thruster Scrap Suit Cryofiber Web Improved Heat Sink Small Storage Unit High-capacity Matter Pod (160) Improved Terrain Scanner Transmission Jammer Remote Datajack Mace Heavy Hammer Great Axe DRS Beacon (Ready) Peak State ------------ > --- POWER ------------ Micro Nuclear Core Fission Core > --- PROPULSION ------- Compact Wheel Armored Wheel Armored Wheel Armored Wheel > --- UTILITY ---------- High-capacity Storage Unit IFF Parser Improved Terrain Scanner Advanced ECM Suite A0-MCA's Component Scanner > --- WEAPON ----------- Mini Grenade Launcher Heavy Hammer > --- INVENTORY -------- Micro Nuclear Core Micro Nuclear Core Flight Unit Flight Unit Flight Unit Flight Unit Scrap Suit Cryofiber Web Improved Heat Sink Small Storage Unit High-capacity Matter Pod Improved Terrain Scanner Remote Datajack Mace Heavy Hammer DRS Beacon [Rating: 46] Favorites ----------- Power Light Ion Engine Engine Light Ion Engine Power Core Fission Core Propulsion Armored Wheel Wheel Armored Wheel Flight Unit Flight Unit Utility Improved Terrain Scanner Device Improved Terrain Scanner Storage High-capacity Storage Unit Processor A0-MCA's Component Scanner Weapon Heavy Hammer Ballistic Gun Light Assault Rifle Launcher Mini Grenade Launcher Impact Weapon Heavy Hammer Build | -11 -10 -10 -9 -6 ------- Run | Yrd Mat Sub Scr Fac Slots Evolved 8 | . . . . 8 Power 1 | . . . . 1 Propulsion 4 | . . . . 4 Utility 3 | . . . . 3 Weapon . | . . . . . Parts Attached 26 | 7 . 2 8 9 Power 5 | 1 . 1 . 3 Engine 3 | 1 . 1 . 1 Core 2 | . . . . 2 Reactor . | . . . . . Propulsion 8 | 2 . 1 4 1 Treads . | . . . . . Leg . | . . . . . Wheel 7 | 2 . . 4 1 Hover . | . . . . . Flight 1 | . . 1 . . Utility 9 | 2 . . 2 5 Device 6 | 1 . . . 5 Storage 2 | 1 . . 1 . Processor 1 | . . . 1 . Hackware . | . . . . . Protection . | . . . . . Artifact . | . . . . . Weapon 4 | 2 . . 2 . Energy Gun . | . . . . . Energy Cannon . | . . . . . Ballistic Gun 2 | 2 . . . . Ballistic Cannon . | . . . . . Launcher 1 | . . . 1 . Special Weapon . | . . . . . Impact Weapon 1 | . . . 1 . Slashing Weapon . | . . . . . Piercing Weapon . | . . . . . Special Melee Weapon . | . . . . . Unidentified Prototypes . | . . . . . Parts Lost 9 | . . . . 9 Power 1 | . . . . 1 Propulsion 5 | . . . . 5 Utility 1 | . . . . 1 Weapon 2 | . . . . 2 Highest Loss Streak 5 | . . . . 5 To Critical Strikes . | . . . . . Average Backups 13 | 2 7 8 14 15 Power 1 | 1 2 1 1 1 Propulsion 3 | . 1 1 4 4 Utility 7 | . 4 4 8 6 Weapon 1 | . . . 1 2 Tool/Special . | . . . . . Unused Backups 29 | 1 1 2 10 15 Power 3 | 1 . . . 2 Propulsion 6 | . . 1 1 4 Utility 14 | . . 1 8 5 Weapon 5 | . 1 . 1 3 Tool/Special 1 | . . . . 1 Average Slot Usage (%) 97 | . 100 100 99 81 Engine 12 | . 14 14 14 4 Core 1 | . . . . 8 Wheel 22 | . 28 19 22 26 Flight 4 | . . 8 4 . Device 10 | . 14 14 9 17 Storage 13 | . 14 14 14 6 Processor 4 | . . . 4 6 Ballistic Gun 5 | . 28 28 1 . Launcher 9 | . . . 13 3 Impact Weapon 9 | . . . 13 5 Peak Build Rating 46 | 9 10 10 32 46 Average Rating 18 | 6 9 9 17 41 On Entrance 10 | . 9 10 10 23 Naked Turns . | . . . . . Heaviest Build 65 | 13 13 13 48 65 Greatest Support 68 | 32 32 32 28 68 Greatest Overweight (x) 3 | . . . 2 3 Average Overweight (x) . | . . . . . Largest Inventory Capacity 20 | 8 8 8 20 20 Average Capacity 15 | 7 8 8 17 20 Most Carried 20 | 7 8 8 20 20 Average Carried 13 | 3 7 7 15 17 Final Capacity 20 | 8 8 8 20 20 Final Carried 20 | 6 8 8 20 20 Class Distribution -------------------- 100% | Mutant Dominant Class ---------------- Mutant | -10/Materials Mutant | -10/Subcaves Mutant | -9/Scraptown Mutant | -6/Factory Resources | -11 -10 -10 -9 -6 ----------- Run | Yrd Mat Sub Scr Fac Matter Collected 682 | 406 8 22 220 26 Remotely . | . . . . . Salvage Created 321 | 214 14 . . 93 Parts 21 | 17 3 . . 1 Haulers Intercepted . | . . . . . Recyclers Shooed . | . . . . . Parts Field Recycled . | . . . . . Retrieved Matter . | . . . . . Parts Self-Destructed 12 | . . 12 . . Prevented . | . . . . . Kills | -11 -10 -10 -9 -6 ------- Run | Yrd Mat Sub Scr Fac Combat Hostiles Destroyed 2 | . . . . 2 Melee 1 | . . . . 1 AOE 1 | . . . . 1 Classes Destroyed 5 | 3 . . . 2 Worker 2 | 2 . . . . Builder 1 | . . . . 1 Tunneler 4 | 3 1 . . . Recycler 1 | 1 . . . . Grunt 2 | . . . . 2 Best Kill Streak 3 | 3 1 . . 3 Combat Bots Only 2 | . . . . 2 Max Kills in Single Turn 1 | 1 1 . . 1 Gunslinging . | . . . . . Exploded 1 | . . . . 1 Melee 1 | . . . . 1 Uniques/NPCs Destroyed . | . . . . . Combat | -11 -10 -10 -9 -6 -------- Run | Yrd Mat Sub Scr Fac Hostile Shots Fired 103 | . . 2 . 101 Missed 33 | . . . . 33 Hits 70 | . . 2 . 68 Projectile 70 | . . 2 . 68 Critical Strikes 1 | . . . . 1 Damage Taken 825 | . . 29 . 796 Core 192 | . . . . 192 Absorbed by Shields . | . . . . . Core Remaining (%) 100 | 100 . . 100 . Volleys Fired 27 | 20 2 1 . 4 Largest 2 | 2 2 2 . 1 Hottest 40 | 40 40 40 . 30 Shots Fired 50 | 40 4 2 . 4 Gun 46 | 40 4 2 . . Cannon . | . . . . . Launcher 4 | . . . . 4 Special . | . . . . . Kinetic 46 | 40 4 2 . . Thermal . | . . . . . Explosive 4 | . . . . 4 Electromagnetic . | . . . . . Robot Hit Streak 7 | 6 6 . . 7 Robot Miss Streak 2 | 2 . . . 2 Penetration Max . | . . . . . Secondary Targets . | . . . . . Shots Hit Robots 32 | 25 2 . . 5 Core Hits 17 | 11 2 . . 4 Critical Kills . | . . . . . Critical Parts Destroyed 1 | 1 . . . . Critical Strikes 1 | 1 . . . . Destroy 1 | 1 . . . . Melee Attacks 9 | . . . . 9 Impact 9 | . . . . 9 Slashing . | . . . . . Piercing . | . . . . . Sneak Attacks 1 | . . . . 1 Combat Hostiles . | . . . . . Follow-up Attacks . | . . . . . Damage Inflicted 591 | 195 15 . . 381 Guns 210 | 195 15 . . . Cannons . | . . . . . Explosions 198 | . . . . 198 Melee 183 | . . . . 183 Ramming . | . . . . . Kinetic 210 | 195 15 . . . Thermal . | . . . . . Explosive 198 | . . . . 198 Electromagnetic . | . . . . . Impact 183 | . . . . 183 Slashing . | . . . . . Piercing . | . . . . . Highest Corruption . | . . . . . Average Corruption . | . . . . . Corruption Purged . | . . . . . Corruption Blocked . | . . . . . Overload Shots . | . . . . . Overflow Damage 35 | . . . . 35 Projectiles . | . . . . . Explosions . | . . . . . Melee 35 | . . . . 35 Knockbacks 2 | . . . . 2 Impact 2 | . . . . 2 Kinetic . | . . . . . Secondary . | . . . . . Self-Inflicted Damage 7 | . . . . 7 Shots 1 | . . . . 1 Rammed . | . . . . . Targets Rammed . | . . . . . Kicked . | . . . . . Crushed . | . . . . . Highest Temperature 5 | . . . . 5 Average Temperature 3 | . . . . 3 Received Heat Transfer 321 | . . . . 321 Siege Activations . | . . . . . Martial Activations . | . . . . . Shielding Activations . | . . . . . Robots Disrupted . | . . . . . Combat Hostiles . | . . . . . Robots Corrupted 1 | . . . . 1 Combat Hostiles . | . . . . . Parts Fried 1 | . . . . 1 Impact Corruptions 3 | . . . . 3 Robots Melted . | . . . . . Combat Hostiles . | . . . . . Parts Melted . | . . . . . Heat Transferred . | . . . . . Parts Sabotaged . | . . . . . Parts Stolen . | . . . . . Parts Stripped . | . . . . . Power Chain Reactions . | . . . . . Alert | -11 -10 -10 -9 -6 ------- Run | Yrd Mat Sub Scr Fac Maximum Alert Level . | . . . . . Low Security (%) 100 | 100 100 . . 100 Level 1 . | . . . . . Level 2 . | . . . . . Level 3 . | . . . . . Level 4 . | . . . . . Level 5 . | . . . . . High Security . | . . . . . Max Security . | . . . . . Peak Influence 191 | 10 5 . . 191 Initial 3 | . 3 . . . Average 55 | 2 1 . . 84 Influence Increases 369 | 30 5 . . 334 Destroy 0b10 Robot/C 40 | . . . . 40 Destroy 0b10 Robot/NC 40 | 30 5 . . 5 Destroy Leader 10 | . . . . 10 Successful Hack 21 | . . . . 21 Disable Machine 15 | . . . . 15 Destroy Structure 48 | . . . . 48 Lose Combat Pursuer 195 | . . . . 195 Influence Decreases 301 | 25 5 5 . 266 Entered New Map 5 | . 2 3 . . Time Decay 206 | 25 3 2 . 176 Lost Part 90 | . . . . 90 Squads Dispatched 7 | . . . . 7 Investigation 5 | . . . . 5 Extermination 1 | . . . . 1 Reinforcement 1 | . . . . 1 Assault . | . . . . . Garrison . | . . . . . Intercept . | . . . . . Searches Triggered . | . . . . . Construction Impeded . | . . . . . Haulers Reinforced . | . . . . . Active Scanning Responses . | . . . . . Cargo Convoy Interrupts . | . . . . . Stealth | -11 -10 -10 -9 -6 --------- Run | Yrd Mat Sub Scr Fac Distress Signals . | . . . . . Communications Jammed . | . . . . . Distress Signals . | . . . . . Times Spotted 21 | . . 4 . 17 Peak Tracking Total 4 | . . 3 . 4 Tactical Retreats 6 | . . . . 6 Traps | -11 -10 -10 -9 -6 ------- Run | Yrd Mat Sub Scr Fac Traps Triggered 3 | . . . . 3 Indirectly . | . . . . . Trap Hack Attempts . | . . . . . Triggered . | . . . . . Disarmed . | . . . . . Reprogrammed . | . . . . . Reused . | . . . . . Traps Extracted . | . . . . . Installed . | . . . . . Triggered . | . . . . . Machines | -11 -10 -10 -9 -6 ---------- Run | Yrd Mat Sub Scr Fac Machines Disabled 1 | . . . . 1 Max in Single Turn 1 | . . . . 1 Machines Repaired . | . . . . . Machines Dismantled . | . . . . . Machines Sabotaged . | . . . . . Overloaded Fab Kills . | . . . . . Hacking | -11 -10 -10 -9 -6 --------- Run | Yrd Mat Sub Scr Fac Machines Accessed 12 | . . . 9 3 Terminals 3 | . . . . 3 Fabricators . | . . . . . Repair Stations . | . . . . . Recycling Units . | . . . . . Scanalyzers . | . . . . . Garrison Access . | . . . . . Total Hacks 65 | . . . 57 8 Successful 59 | . . . 57 2 Failed 6 | . . . . 6 Catastrophic 3 | . . . . 3 Database Lockouts . | . . . . . Manual . | . . . . . Terminals 8 | . . . . 8 Fabricators . | . . . . . Repair Stations . | . . . . . Recycling Units . | . . . . . Scanalyzers . | . . . . . Garrison Access . | . . . . . Terminal Hacks 59 | . . . 57 2 Record 56 | . . . 56 . Branch Access Points 1 | . . . . 1 Zone Layout 1 | . . . . 1 Proto ID Catalog 1 | . . . 1 . Fabricator Hacks . | . . . . . Repair Station Hacks . | . . . . . Recycling Unit Hacks . | . . . . . Scanalyzer . | . . . . . Garrison Access Hacks . | . . . . . Unauthorized Hacks . | . . . . . Terminals . | . . . . . Fabricators . | . . . . . Repair Stations . | . . . . . Recycling Units . | . . . . . Scanalyzers . | . . . . . Garrison Access . | . . . . . Data Cores Recovered . | . . . . . Used . | . . . . . Hacking Detections 3 | . . . . 3 Full Trace Events 3 | . . . . 3 Feedback Events . | . . . . . Feedback Blocked . | . . . . . Robot Schematics Acquired . | . . . . . Robots Built . | . . . . . Authchips . | . . . . . Time . | . . . . . Total Robot Build Rating . | . . . . . Part Schematics Acquired . | . . . . . Parts Built . | . . . . . Authchips . | . . . . . Time . | . . . . . Total Part Build Rating . | . . . . . Parts Repaired . | . . . . . Time . | . . . . . Parts Recycled . | . . . . . Recycled Matter . | . . . . . Retrieved Matter . | . . . . . Retrieved Components . | . . . . . Parts Scanalyzed . | . . . . . Part Schematics Acquired . | . . . . . Parts Damaged . | . . . . . Bothacking | -11 -10 -10 -9 -6 ------------ Run | Yrd Mat Sub Scr Fac Used RIF Installer . | . . . . . Robots Hacked . | . . . . . Non-combat . | . . . . . Combat . | . . . . . Robot Hacks Applied . | . . . . . Relay Couplers Released . | . . . . . Fabnet Peak Effective % . | . . . . . Robots Rewired . | . . . . . Allies Hacked . | . . . . . Hacks Repelled . | . . . . . Allies | -11 -10 -10 -9 -6 -------- Run | Yrd Mat Sub Scr Fac Total Allies . | . . . . . Largest Group . | . . . . . Highest-Rated Group . | . . . . . Highest-Rated Ally . | . . . . . Total Orders . | . . . . . Ally Attacks . | . . . . . Total Damage . | . . . . . Kills . | . . . . . Allies Corrupted . | . . . . . Allies Melted . | . . . . . Intel | -11 -10 -10 -9 -6 ------- Run | Yrd Mat Sub Scr Fac Active Infowar (turns) 2376 | 59 72 488 1378 379 IFF 275 | . . . . 275 Terrain 2376 | 59 72 488 1378 379 ECM 11 | . . . . 11 Robot Analysis Total . | . . . . . Derelict Logs Recovered 2 | . . 1 1 . Drone Launches . | . . . . . Drone Recoveries . | . . . . . Exploration | -11 -10 -10 -9 -6 ------------- Run | Yrd Mat Sub Scr Fac Turns Passed 3227 | 137 72 488 2148 382 Spaces Moved 2763 | 70 56 405 1926 306 Core 4 | 4 . . . . Treads . | . . . . . Legs . | . . . . . Wheels 2759 | 66 56 405 1926 306 Hover . | . . . . . Flight . | . . . . . Fastest Speed 50 | 50 100 100 90 92 Average Speed 105 | 97 100 100 106 106 Slowest Speed 145 | 100 100 100 130 145 Overloaded Moves . | . . . . . Propulsion Burnouts . | . . . . . Robots Hopped . | . . . . . Potential Cave-ins . | . . . . . Cave-ins Triggered . | . . . . . Exploration Rate (%) 30 | 4 15 25 94 12 Regions Visited 4 Branch Regions 2 Pre-discovered Areas . | . . . . . Known Exits Taken . | . . . . . Unknown Exits Taken 4 | 1 1 1 1 . Scrap Searched 8 | . . . 8 . Spaces Dug 4 | . . . . 4 Terrain Destroyed 60 | . . . . 60 Melee 4 | . . . . 4 Projectile . | . . . . . AOE 56 | . . . . 56 Terrain Rammed . | . . . . . Walls Destroyed . | . . . . . Machines Disabled . | . . . . . Actions | -11 -10 -10 -9 -6 --------- Run | Yrd Mat Sub Scr Fac Total 3031 | 104 69 487 2030 341 Wait 133 | . 8 73 50 2 Move 2759 | 69 55 404 1925 306 Hop . | . . . . . Pick Up 45 | 7 3 3 25 7 Fast Attach 16 | 7 . 1 5 3 Attach 10 | . . 1 2 7 Detach 2 | . . . 2 . Swap 3 | . . . 2 1 Drop 27 | 1 1 4 19 2 Fire 27 | 20 2 1 . 4 Melee 9 | . . . . 9 Ram . | . . . . . Kick . | . . . . . Crush . | . . . . . Escape Stasis . | . . . . . Rewire . | . . . . . Trap . | . . . . . Miscellaneous . | . . . . . Route ------- -11/Scrapyard -10/Materials (discovered 2 exits: [*Min] / [*Sub]) -10/Subcaves (discovered 3 exits: [*Mat] / *Scr x2) -9/Scraptown (discovered 2 exits: *Fac x2) -6/Factory (discovered 2 exits: Low x2) History --------- Turn | Location | Event 2 | -11/Scrapyard | Met Revision 17 27 | -11/Scrapyard | Discovered new exit (range 16) 138 | -11/Scrapyard | Entered Materials 139 | -10/Materials | Met a group of wandering Federalists 169 | -10/Materials | Discovered new exit (range 12) 177 | -10/Materials | Discovered new exit (range 10) 210 | -10/Materials | Entered Subcaves 210 | -10/Subcaves | Accompanied by 3 allies 211 | -10/Subcaves | Continued accompanying wandering Federalists (3) 211 | -10/Subcaves | Approached by a straggling Scientist 221 | -10/Subcaves | Learned Materials garrison access intel 301 | -10/Subcaves | Scientist uncovered a shortcut to Scraptown 304 | -10/Subcaves | Discovered new exit (range 16) 313 | -10/Subcaves | Build established: Mutant 408 | -10/Subcaves | Wandering Federalist uncovered a shortcut to Scraptown 698 | -10/Subcaves | Entered Scraptown 868 | -9/Scraptown | Visited UFD Registry 868 | -9/Scraptown | Registered with UFD as "Roughforce" 876 | -9/Scraptown | Visited Cyclists 887 | -9/Scraptown | Entered Cyclist Reading Room 911 | -9/Scraptown | Visited SPCMW 991 | -9/Scraptown | Visited Red Mages 1050 | -9/Scraptown | Visited Cave Peace 1379 | -9/Scraptown | Scanned Subdweller tech in exchange for log data 1405 | -9/Scraptown | Discovered new exit (range 13) 1439 | -9/Scraptown | Guru changed UFD alias to "Gearsink" 1612 | -9/Scraptown | Visited Bundlers 1683 | -9/Scraptown | Visited Spacefarers 1764 | -9/Scraptown | Found Relay Coupler [Proto] 2000 | -9/Scraptown | Visited Chapter 10 2068 | -9/Scraptown | Visited A0-MCA Data Center 2074 | -9/Scraptown | Given a B rating by A0-MCA 2076 | -9/Scraptown | Found A0-MCA's Component Scanner 2098 | -9/Scraptown | Visited Observation Area 2293 | -9/Scraptown | Visited Science Guys 2331 | -9/Scraptown | Visited Scrap Suit Storage 2343 | -9/Scraptown | Found Scrap Suit 2367 | -9/Scraptown | Visited Abandonware Association 2381 | -9/Scraptown | Learned abandonware demo "REBOOT5.EXE" 2381 | -9/Scraptown | Learned abandonware demo "MELTYB.EXE" 2426 | -9/Scraptown | Visited Derelict Rescue Squad 2436 | -9/Scraptown | Found DRS Beacon 2470 | -9/Scraptown | Visited Science Testing Area 2507 | -9/Scraptown | Visited Modified Component R&D 2740 | -9/Scraptown | Met Optimus 2740 | -9/Scraptown | Accepted into 0bPrime 2840 | -9/Scraptown | Discovered new exit (range 5) 2846 | -9/Scraptown | Entered Factory 2846 | -6/Factory | Evolved 8 slots: Power x1, Propulsion x4, Utility x3 2872 | -6/Factory | Identified exit to Lower Caves 3228 | -6/Factory | Self-destructed Last Messages --------------- corrupted. 03105_ Terrain Scan Processor fried. 03108_ The unstable cave ceiling collapses. 03108_ Acquired 26 matter. 03124_ Acquired IFF Parser. 03127_ Acquired Transmission Jammer. 03140_ Dropped Imp. Terrain Scanner. 03178_ Triggered Alarm Trap. 03178_ An alarm sounds. 03178_ ALERT: Alarm triggered, dispatching investigation squad. 03198_ ALERT: Potential suspicious activity detected, Programmers report to Factory Zone 2I. 03210_ Arm. Wheel destroyed. 03219_ Hvy. Hammer destroyed. 03222_ Com. Wheel destroyed. 03226_ Arm. Wheel destroyed. 03228_ Com. Wheel destroyed. [Achievement: This Is Interesting...] Map ----- +----------------------------------------------------+ | ????# # """ "" #########+ | | ????# # | | ????# # """ """ # """ " | | ????# # # """ """ # """ " | | ????## # # """ """ # """ " | | ?????# # # # | | ######## # # # # """ " | | # # + # """ " | | # """"""""" # # # """ " | | # # ######+#/##### | | #! """"""""" # + | | # # ### ! | | # """"""""" + #?# | | # # #?##+####### | | # """"""""" # #??# #?????? | | # ##### #?## #?????? | | #! """"""""" #???# #### ####### | | # #???# | | # ! #???# | | ##############???# | | ???#??##?#######?# | | ??????? ?# #?# | | ?? ???? ?# ### ################ | | ??????? ?# " g #?#????????????# | | ??????" ?# g#####??????????????#### | | ??"?"?" ?# @ #????#???????#??????#?? | | # " " " ### ##????#????????????????# | | # " " " #?# #????????#????#????????? | | # " " " #?# #???????????#??#??#????? | | # " " " #?# #??????????????????????? | | # " " " ### ###????????????????????? | | # " " " # #????????????????????? | | # # t #???????????#????????? | | # [ # #????????#???????????? | | # + #????????????????????? | | # # g #??#?????#???????#???? | | # # Y[ #???????#????????????? | | # # ##???????????????????? | | ########;###+###"#####???????????????? | | ???# * ]]#???????????????? | | ???# " """ """ ]]#???????????????? | | ???# T """ """ #???????????????? | | ???# " """ """ #???????????????? | | ???# #???????????????? | | ???# #???????????????? | | ??? ! [ #???????????????? | | ??####################???????????????? | | | | | | | +----------------------------------------------------+ Best States ------------- Heat Dissipation 37 Energy Generation 28 Energy Capacity 360 Matter Stores 300 Matter Capacity 300 Sight Range 16 Terrain Scan Range 16 Terrain Scan Density 10 ECM Strength 2 Evasion (%) 42 Item Schematics ----------------- None Robot Schematics ------------------ None Fabricated ------------ Nothing Repaired ---------- Nothing Alien Tech Used ----------------- None Achievements -------------- This Is Interesting... Challenges ------------ None Game ------ Seed painworld Manual? 1 Play Time 00:35:37 Cumulative 20.2 hours Start 2025.09.10 @ 18:36:58 End 2025.09.10 @ 19:09:15 Sessions 1 Manual Loads 0 Difficulty Rogue Special Mode None Game No. 59 Rogue 59 Adventurer 0 Explorer 0 Win Type - Total 0 Types 0/0/0/0/0/0/0/0/0/0 Lore% 26 Gallery% 24 Achievement% 28 Wizard Run 0 Options --------- Layout 2 ASCII 0 Keyboard 0 Movement Mouse Keybinds 0 Fullscreen 2 Font 24/Smallcaps Map View 50x44 Zoom Use 0% Tactical HUD 1 Map Filters NONE Filters NONE Steam 1 RUN: ca1df807-13b2-4ba0-b83f-375c9e48faca